[Event "Titled Tuesday Blitz May 30 Early 2023"]
[White "Llanos, Guillermo"]
[Black "Manukian, Artak"]
[WhiteFideId "100358"]
[BlackFideId "13301373"]
[WhiteElo "2225"]
[BlackElo "2130"]
[Result "0-1"]
[Round "11"]
[TimeControl "180+2"]
[Date "2023.05.30"]
[WhiteClock "0:00:02"]
[BlackClock "0:00:23"]

1. d4 {[%clk 0:03:00]}  d5 {[%clk 0:02:59]} 2. c4 {[%clk 0:02:59]}  dxc4 {[%clk 0:03:00]} 3. Nf3 {[%clk 0:02:58]}  Nf6 {[%clk 0:03:00]} 4. e3 {[%clk 0:02:58]}  e6 {[%clk 0:02:59]} 5. Bxc4 {[%clk 0:02:58]}  c5 {[%clk 0:03:00]} 6. Qe2 {[%clk 0:02:57]}  a6 {[%clk 0:03:00]} 7. dxc5 {[%clk 0:02:56]}  Bxc5 {[%clk 0:02:59]} 8. O-O {[%clk 0:02:56]}  O-O {[%clk 0:02:59]} 9. e4 {[%clk 0:02:56]}  Nc6 {[%clk 0:02:51]} 10. e5 {[%clk 0:02:53]}  Nd5 {[%clk 0:02:51]} 11. Bd3 {[%clk 0:02:46]}  g6 {[%clk 0:02:40]} 12. Bh6 {[%clk 0:02:44]}  Re8 {[%clk 0:02:40]} 13. Nbd2 {[%clk 0:02:37]}  Bf8 {[%clk 0:02:36]} 14. Bxf8 {[%clk 0:02:26]}  Kxf8 {[%clk 0:02:29]} 15. Ne4 {[%clk 0:02:04]}  Nf4 {[%clk 0:02:26]} 16. Qe3 {[%clk 0:02:04]}  Nxd3 {[%clk 0:01:35]} 17. Rfd1 {[%clk 0:01:51]}  Kg7 {[%clk 0:01:30]} 18. Rxd3 {[%clk 0:01:49]}  Qe7 {[%clk 0:01:30]} 19. Rad1 {[%clk 0:01:41]}  Nb4 {[%clk 0:01:26]} 20. Rd6 {[%clk 0:01:31]}  Nd5 {[%clk 0:01:19]} 21. Qd4 {[%clk 0:01:03]}  b5 {[%clk 0:01:13]} 22. Neg5 {[%clk 0:00:56]}  Bb7 {[%clk 0:01:06]} 23. h4 {[%clk 0:00:41]}  Rac8 {[%clk 0:01:02]} 24. h5 {[%clk 0:00:34]}  Rc4 {[%clk 0:00:57]} 25. Qa7 {[%clk 0:00:33]}  Ra8 {[%clk 0:00:51]} 26. R6xd5 {[%clk 0:00:19]}  Rxa7 {[%clk 0:00:48]} 27. Rd7 {[%clk 0:00:19]}  Bd5 {[%clk 0:00:43]} 28. Rxe7 {[%clk 0:00:18]}  Rxe7 {[%clk 0:00:44]} 29. hxg6 {[%clk 0:00:17]}  hxg6 {[%clk 0:00:43]} 30. Nd4 {[%clk 0:00:16]}  Rec7 {[%clk 0:00:40]} 31. Kh2 {[%clk 0:00:16]}  b4 {[%clk 0:00:31]} 32. Rd2 {[%clk 0:00:15]}  a5 {[%clk 0:00:31]} 33. Kg3 {[%clk 0:00:15]}  a4 {[%clk 0:00:30]} 34. Kf4 {[%clk 0:00:14]}  a3 {[%clk 0:00:29]} 35. bxa3 {[%clk 0:00:13]}  bxa3 {[%clk 0:00:30]} 36. f3 {[%clk 0:00:11]}  Rb4 {[%clk 0:00:28]} 37. Ke3 {[%clk 0:00:10]}  Rc3+ {[%clk 0:00:27]} 38. Ke2 {[%clk 0:00:10]}  Rb2 {[%clk 0:00:27]} 39. Nh3 {[%clk 0:00:10]}  Bxa2 {[%clk 0:00:24]} 40. Nf4 {[%clk 0:00:02]}  Bc4+ {[%clk 0:00:23]} 0-1


[Site "https://www.chess.com"]

[Event "Titled Tuesday Blitz May 30 Early 2023"]
[White "Lorparizangeneh, Shahin"]
[Black "Goswami, Vedant"]
[WhiteFideId "12521604"]
[BlackFideId "5003725"]
[WhiteElo "2526"]
[BlackElo "2011"]
[Result "1-0"]
[Round "11"]
[TimeControl "180+2"]
[Date "2023.05.30"]
[WhiteClock "0:01:48"]
[BlackClock "0:00:31"]

1. e4 {[%clk 0:03:00]}  c6 {[%clk 0:02:58]} 2. d4 {[%clk 0:03:00]}  d5 {[%clk 0:02:58]} 3. exd5 {[%clk 0:03:01]}  cxd5 {[%clk 0:02:57]} 4. Bd3 {[%clk 0:03:01]}  g6 {[%clk 0:02:55]} 5. Nf3 {[%clk 0:02:58]}  Bg7 {[%clk 0:02:54]} 6. c3 {[%clk 0:02:56]}  Nc6 {[%clk 0:02:50]} 7. O-O {[%clk 0:02:52]}  Bg4 {[%clk 0:02:46]} 8. Nbd2 {[%clk 0:02:51]}  e6 {[%clk 0:02:42]} 9. Qb3 {[%clk 0:02:47]}  Rb8 {[%clk 0:02:32]} 10. Ne5 {[%clk 0:02:37]}  Bxe5 {[%clk 0:02:24]} 11. dxe5 {[%clk 0:02:38]}  Bf5 {[%clk 0:02:12]} 12. Bb5 {[%clk 0:02:34]}  Ne7 {[%clk 0:02:08]} 13. Nf3 {[%clk 0:02:34]}  a6 {[%clk 0:02:04]} 14. Be2 {[%clk 0:02:30]}  h6 {[%clk 0:02:01]} 15. Nd4 {[%clk 0:02:18]}  Nxd4 {[%clk 0:01:59]} 16. cxd4 {[%clk 0:02:19]}  Nc6 {[%clk 0:01:56]} 17. Be3 {[%clk 0:02:18]}  Kf8 {[%clk 0:01:41]} 18. g4 {[%clk 0:02:16]}  Qh4 {[%clk 0:01:21]} 19. gxf5 {[%clk 0:02:14]}  gxf5 {[%clk 0:01:20]} 20. f4 {[%clk 0:02:06]}  Rg8+ {[%clk 0:01:15]} 21. Kh1 {[%clk 0:02:05]}  Qh3 {[%clk 0:00:40]} 22. Rg1 {[%clk 0:01:51]}  Ke7 {[%clk 0:00:37]} 23. Qa3+ {[%clk 0:01:49]}  Kd7 {[%clk 0:00:31]} 24. Qd6+ {[%clk 0:01:48]} 1-0


[Site "https://www.chess.com"]

[Event "Titled Tuesday Blitz May 30 Early 2023"]
[White "Alexikov, Alexander"]
[Black "Camilla_Lee"]
[WhiteFideId "14103958"]
[WhiteElo "2186"]
[BlackElo "2635"]
[Result "0-1"]
[Round "11"]
[TimeControl "180+2"]
[Date "2023.05.30"]
[WhiteClock "0:00:00"]
[BlackClock "0:00:55"]

1. e4 {[%clk 0:03:00]}  e5 {[%clk 0:02:59]} 2. Nf3 {[%clk 0:03:00]}  Nc6 {[%clk 0:03:00]} 3. c3 {[%clk 0:03:00]}  d5 {[%clk 0:02:59]} 4. Qa4 {[%clk 0:02:59]}  Qd6 {[%clk 0:02:41]} 5. Bb5 {[%clk 0:02:56]}  Bd7 {[%clk 0:02:40]} 6. d4 {[%clk 0:02:54]}  dxe4 {[%clk 0:02:38]} 7. Nxe5 {[%clk 0:02:53]}  Nf6 {[%clk 0:02:29]} 8. Nxd7 {[%clk 0:02:34]}  Qxd7 {[%clk 0:02:28]} 9. Bf4 {[%clk 0:02:10]}  Be7 {[%clk 0:02:23]} 10. Nd2 {[%clk 0:02:08]}  O-O {[%clk 0:02:22]} 11. O-O {[%clk 0:02:07]}  Nd5 {[%clk 0:02:22]} 12. Bg3 {[%clk 0:02:05]}  e3 {[%clk 0:02:23]} 13. Nf3 {[%clk 0:02:01]}  exf2+ {[%clk 0:02:11]} 14. Rxf2 {[%clk 0:02:00]}  Bf6 {[%clk 0:02:03]} 15. Ne5 {[%clk 0:01:43]}  Bxe5 {[%clk 0:02:03]} 16. Bxe5 {[%clk 0:01:42]}  a6 {[%clk 0:01:49]} 17. Bxc6 {[%clk 0:01:40]}  Qxc6 {[%clk 0:01:50]} 18. Qxc6 {[%clk 0:01:39]}  bxc6 {[%clk 0:01:50]} 19. Re2 {[%clk 0:01:20]}  Rfe8 {[%clk 0:01:41]} 20. Rae1 {[%clk 0:01:18]}  f6 {[%clk 0:01:40]} 21. Bg3 {[%clk 0:01:17]}  Kf7 {[%clk 0:01:37]} 22. a3 {[%clk 0:01:07]}  Rxe2 {[%clk 0:01:34]} 23. Rxe2 {[%clk 0:01:06]}  Re8 {[%clk 0:01:34]} 24. Rxe8 {[%clk 0:01:02]}  Kxe8 {[%clk 0:01:35]} 25. c4 {[%clk 0:00:59]}  Ne3 {[%clk 0:01:31]} 26. b3 {[%clk 0:00:59]}  Kd7 {[%clk 0:01:26]} 27. Bf2 {[%clk 0:00:50]}  Nc2 {[%clk 0:01:22]} 28. a4 {[%clk 0:00:50]}  Na1 {[%clk 0:01:21]} 29. b4 {[%clk 0:00:49]}  Nc2 {[%clk 0:01:22]} 30. b5 {[%clk 0:00:46]}  cxb5 {[%clk 0:01:22]} 31. cxb5 {[%clk 0:00:42]}  axb5 {[%clk 0:01:22]} 32. axb5 {[%clk 0:00:41]}  Na3 {[%clk 0:01:21]} 33. Kf1 {[%clk 0:00:38]}  Nxb5 {[%clk 0:01:20]} 34. Ke2 {[%clk 0:00:38]}  Kd6 {[%clk 0:01:18]} 35. Kd3 {[%clk 0:00:37]}  Kd5 {[%clk 0:01:19]} 36. g4 {[%clk 0:00:35]}  c6 {[%clk 0:01:12]} 37. h4 {[%clk 0:00:34]}  Nd6 {[%clk 0:01:12]} 38. h5 {[%clk 0:00:29]}  f5 {[%clk 0:01:01]} 39. gxf5 {[%clk 0:00:23]}  Nxf5 {[%clk 0:01:02]} 40. Bg1 {[%clk 0:00:16]}  Ng3 {[%clk 0:01:00]} 41. h6 {[%clk 0:00:16]}  gxh6 {[%clk 0:00:59]} 42. Bh2 {[%clk 0:00:11]}  Nf5 {[%clk 0:00:58]} 43. Bg1 {[%clk 0:00:10]}  h5 {[%clk 0:00:58]} 44. Bf2 {[%clk 0:00:10]}  h4 {[%clk 0:00:58]} 45. Bg1 {[%clk 0:00:10]}  h3 {[%clk 0:00:58]} 46. Kc3 {[%clk 0:00:07]}  Nxd4 {[%clk 0:00:55]} 47. Kd3 {[%clk 0:00:00]}  Nf3 {[%clk 0:00:55]} 0-1


[Site "https://www.chess.com"]

[Event "Titled Tuesday Blitz May 30 Early 2023"]
[White "Weishaeutel, Moritz"]
[Black "KorolDimitriy75"]
[WhiteFideId "12967300"]
[WhiteElo "2301"]
[BlackElo "2415"]
[Result "1/2-1/2"]
[Round "11"]
[TimeControl "180+2"]
[Date "2023.05.30"]
[WhiteClock "0:00:19"]
[BlackClock "0:00:17"]

1. e4 {[%clk 0:03:00]}  c5 {[%clk 0:03:00]} 2. d4 {[%clk 0:03:01]}  cxd4 {[%clk 0:02:59]} 3. c3 {[%clk 0:03:02]}  d5 {[%clk 0:02:59]} 4. exd5 {[%clk 0:03:02]}  Qxd5 {[%clk 0:03:00]} 5. cxd4 {[%clk 0:03:02]}  Nc6 {[%clk 0:03:00]} 6. Nf3 {[%clk 0:03:02]}  e5 {[%clk 0:03:00]} 7. Nc3 {[%clk 0:03:02]}  Bb4 {[%clk 0:03:00]} 8. Bd2 {[%clk 0:03:03]}  Bxc3 {[%clk 0:03:00]} 9. Bxc3 {[%clk 0:03:04]}  e4 {[%clk 0:03:01]} 10. Ne5 {[%clk 0:03:05]}  Nxe5 {[%clk 0:03:01]} 11. dxe5 {[%clk 0:03:06]}  Ne7 {[%clk 0:03:01]} 12. Qxd5 {[%clk 0:02:38]}  Nxd5 {[%clk 0:03:02]} 13. Bb5+ {[%clk 0:02:37]}  Bd7 {[%clk 0:03:01]} 14. O-O-O {[%clk 0:02:24]}  Bxb5 {[%clk 0:02:51]} 15. Rxd5 {[%clk 0:02:24]}  Bc6 {[%clk 0:02:42]} 16. Rd6 {[%clk 0:02:24]}  O-O {[%clk 0:02:27]} 17. Rhd1 {[%clk 0:02:21]}  Rfe8 {[%clk 0:02:20]} 18. Kd2 {[%clk 0:02:20]}  Re6 {[%clk 0:02:09]} 19. Ke3 {[%clk 0:02:19]}  Rae8 {[%clk 0:02:08]} 20. f4 {[%clk 0:01:56]}  exf3 {[%clk 0:02:02]} 21. gxf3 {[%clk 0:01:57]}  f6 {[%clk 0:01:03]} 22. f4 {[%clk 0:01:56]}  fxe5 {[%clk 0:00:58]} 23. Bxe5 {[%clk 0:01:52]}  Kf7 {[%clk 0:00:42]} 24. Kf2 {[%clk 0:01:42]}  g5 {[%clk 0:00:30]} 25. Rxe6 {[%clk 0:01:18]}  Rxe6 {[%clk 0:00:29]} 26. Bb8 {[%clk 0:01:18]}  gxf4 {[%clk 0:00:29]} 27. Bxa7 {[%clk 0:01:18]}  f3 {[%clk 0:00:27]} 28. Be3 {[%clk 0:01:14]}  Rg6 {[%clk 0:00:27]} 29. Rg1 {[%clk 0:01:09]}  Rg2+ {[%clk 0:00:26]} 30. Rxg2 {[%clk 0:01:06]}  fxg2 {[%clk 0:00:27]} 31. Ke2 {[%clk 0:01:03]}  Ke6 {[%clk 0:00:26]} 32. Kd3 {[%clk 0:01:04]}  Kf5 {[%clk 0:00:26]} 33. Ke2 {[%clk 0:00:27]}  Kg4 {[%clk 0:00:25]} 34. Kf2 {[%clk 0:00:27]}  h5 {[%clk 0:00:21]} 35. Bb6 {[%clk 0:00:23]}  h4 {[%clk 0:00:20]} 36. Bd8 {[%clk 0:00:20]}  Kh3 {[%clk 0:00:17]} 37. Bc7 {[%clk 0:00:19]} 1/2-1/2


[Site "https://www.chess.com"]

[Event "Titled Tuesday Blitz May 30 Early 2023"]
[White "Ambartsumova, Karina"]
[Black "Fiedorek, Michal"]
[WhiteFideId "4166299"]
[BlackFideId "1199528"]
[WhiteElo "2240"]
[BlackElo "2135"]
[Result "1-0"]
[Round "11"]
[TimeControl "180+2"]
[Date "2023.05.30"]
[WhiteClock "0:00:47"]
[BlackClock "0:00:00"]

1. e4 {[%clk 0:03:00]}  c5 {[%clk 0:02:58]} 2. d4 {[%clk 0:03:00]}  cxd4 {[%clk 0:02:58]} 3. c3 {[%clk 0:03:00]}  dxc3 {[%clk 0:02:58]} 4. Nxc3 {[%clk 0:03:01]}  Nc6 {[%clk 0:02:57]} 5. Nf3 {[%clk 0:03:02]}  d6 {[%clk 0:02:52]} 6. Bc4 {[%clk 0:03:02]}  Nf6 {[%clk 0:02:46]} 7. e5 {[%clk 0:02:58]}  dxe5 {[%clk 0:02:38]} 8. Qxd8+ {[%clk 0:02:56]}  Nxd8 {[%clk 0:02:36]} 9. Nb5 {[%clk 0:02:54]}  Rb8 {[%clk 0:01:38]} 10. Nxe5 {[%clk 0:02:40]}  e6 {[%clk 0:01:16]} 11. Be3 {[%clk 0:02:00]}  Bb4+ {[%clk 0:01:03]} 12. Ke2 {[%clk 0:02:00]}  O-O {[%clk 0:00:18]} 13. a3 {[%clk 0:01:59]}  Be7 {[%clk 0:00:13]} 14. Bxa7 {[%clk 0:01:57]}  Ra8 {[%clk 0:00:13]} 15. Bb6 {[%clk 0:01:48]}  Nd7 {[%clk 0:00:11]} 16. Nxd7 {[%clk 0:01:22]}  Bxd7 {[%clk 0:00:11]} 17. Rhd1 {[%clk 0:01:23]}  Bc6 {[%clk 0:00:09]} 18. f3 {[%clk 0:01:23]}  e5 {[%clk 0:00:08]} 19. Nc7 {[%clk 0:01:14]}  Rc8 {[%clk 0:00:07]} 20. Rac1 {[%clk 0:01:15]}  Kh8 {[%clk 0:00:04]} 21. b4 {[%clk 0:01:10]}  g6 {[%clk 0:00:02]} 22. b5 {[%clk 0:00:56]}  Be8 {[%clk 0:00:02]} 23. a4 {[%clk 0:00:57]}  Kg7 {[%clk 0:00:01]} 24. Nxe8+ {[%clk 0:00:46]}  Rxe8 {[%clk 0:00:00]} 25. Rd7 {[%clk 0:00:47]} 1-0


[Site "https://www.chess.com"]

[Event "Titled Tuesday Blitz May 30 Early 2023"]
[White "Belov, Alexei"]
[Black "Toktomushev, Teimur"]
[WhiteFideId "4128206"]
[BlackFideId "14176726"]
[WhiteElo "2523"]
[BlackElo "2116"]
[Result "1-0"]
[Round "11"]
[TimeControl "180+2"]
[Date "2023.05.30"]
[WhiteClock "0:00:34"]
[BlackClock "0:00:02"]

1. e4 {[%clk 0:03:00]}  c5 {[%clk 0:02:59]} 2. Nf3 {[%clk 0:03:00]}  e6 {[%clk 0:03:00]} 3. d4 {[%clk 0:03:01]}  cxd4 {[%clk 0:03:01]} 4. Nxd4 {[%clk 0:03:01]}  a6 {[%clk 0:03:02]} 5. Nc3 {[%clk 0:03:01]}  b5 {[%clk 0:03:02]} 6. Be2 {[%clk 0:03:01]}  Bb7 {[%clk 0:03:03]} 7. Bf3 {[%clk 0:03:01]}  Nc6 {[%clk 0:03:03]} 8. Nxc6 {[%clk 0:03:01]}  Bxc6 {[%clk 0:03:04]} 9. O-O {[%clk 0:03:00]}  Qc7 {[%clk 0:03:03]} 10. Re1 {[%clk 0:03:00]}  Bd6 {[%clk 0:02:48]} 11. h3 {[%clk 0:02:58]}  Ne7 {[%clk 0:02:08]} 12. Qe2 {[%clk 0:02:35]}  O-O {[%clk 0:01:46]} 13. a3 {[%clk 0:01:54]}  Ng6 {[%clk 0:01:22]} 14. g3 {[%clk 0:01:47]}  f5 {[%clk 0:00:46]} 15. exf5 {[%clk 0:01:44]}  Rxf5 {[%clk 0:00:43]} 16. Bxc6 {[%clk 0:01:41]}  Qxc6 {[%clk 0:00:44]} 17. Qe4 {[%clk 0:01:41]}  Bc5 {[%clk 0:00:19]} 18. Be3 {[%clk 0:01:36]}  Bxe3 {[%clk 0:00:11]} 19. Rxe3 {[%clk 0:01:35]}  Rc8 {[%clk 0:00:11]} 20. Qxc6 {[%clk 0:01:22]}  Rxc6 {[%clk 0:00:12]} 21. f4 {[%clk 0:01:20]}  h5 {[%clk 0:00:10]} 22. h4 {[%clk 0:01:20]}  Kf7 {[%clk 0:00:09]} 23. Rd1 {[%clk 0:01:15]}  d5 {[%clk 0:00:09]} 24. Rd2 {[%clk 0:01:15]}  Ne7 {[%clk 0:00:05]} 25. Ne2 {[%clk 0:01:15]}  Rc4 {[%clk 0:00:02]} 26. Nd4 {[%clk 0:01:14]}  Rf6 {[%clk 0:00:02]} 27. Nf3 {[%clk 0:01:14]}  Nc6 {[%clk 0:00:02]} 28. b3 {[%clk 0:01:10]}  Rc5 {[%clk 0:00:02]} 29. Rde2 {[%clk 0:01:04]}  Ke7 {[%clk 0:00:02]} 30. c3 {[%clk 0:01:01]}  Kd7 {[%clk 0:00:02]} 31. Ng5 {[%clk 0:01:01]}  Nd8 {[%clk 0:00:01]} 32. Rd2 {[%clk 0:00:56]}  Rc6 {[%clk 0:00:01]} 33. Nf3 {[%clk 0:00:54]}  Nf7 {[%clk 0:00:02]} 34. f5 {[%clk 0:00:50]}  Rxf5 {[%clk 0:00:02]} 35. Nd4 {[%clk 0:00:50]}  Nd6 {[%clk 0:00:02]} 36. Nxc6 {[%clk 0:00:49]}  Kxc6 {[%clk 0:00:02]} 37. Rxe6 {[%clk 0:00:49]}  Rf3 {[%clk 0:00:03]} 38. c4 {[%clk 0:00:45]}  bxc4 {[%clk 0:00:02]} 39. bxc4 {[%clk 0:00:45]}  Rxg3+ {[%clk 0:00:03]} 40. Kh2 {[%clk 0:00:44]}  Rg4 {[%clk 0:00:02]} 41. Rxd5 {[%clk 0:00:39]}  Rxh4+ {[%clk 0:00:02]} 42. Kg3 {[%clk 0:00:39]}  Rg4+ {[%clk 0:00:03]} 43. Kf3 {[%clk 0:00:38]}  Rxc4 {[%clk 0:00:02]} 44. Rdxd6+ {[%clk 0:00:37]}  Kb5 {[%clk 0:00:02]} 45. Rb6+ {[%clk 0:00:35]}  Ka4 {[%clk 0:00:02]} 46. Rb4+ {[%clk 0:00:33]}  Rxb4 {[%clk 0:00:02]} 47. axb4 {[%clk 0:00:34]}  Kxb4 {[%clk 0:00:02]} 48. Rxa6 {[%clk 0:00:34]} 1-0


[Site "https://www.chess.com"]

[Event "Titled Tuesday Blitz May 30 Early 2023"]
[White "Rose, Felix"]
[Black "Avazkhonov, Alikhon"]
[WhiteFideId "5105722"]
[BlackFideId "14208504"]
[WhiteElo "2039"]
[BlackElo "1739"]
[Result "1-0"]
[Round "11"]
[TimeControl "180+2"]
[Date "2023.05.30"]
[WhiteClock "0:01:11"]
[BlackClock "0:00:16"]

1. d4 {[%clk 0:03:00]}  Nf6 {[%clk 0:02:55]} 2. Nf3 {[%clk 0:02:59]}  e6 {[%clk 0:02:56]} 3. e3 {[%clk 0:02:59]}  b6 {[%clk 0:02:55]} 4. Bd3 {[%clk 0:02:59]}  Bb7 {[%clk 0:02:56]} 5. Nbd2 {[%clk 0:03:00]}  d5 {[%clk 0:02:54]} 6. O-O {[%clk 0:03:00]}  Bd6 {[%clk 0:02:53]} 7. Qe2 {[%clk 0:02:56]}  O-O {[%clk 0:02:53]} 8. e4 {[%clk 0:02:52]}  dxe4 {[%clk 0:02:54]} 9. Nxe4 {[%clk 0:02:53]}  Nxe4 {[%clk 0:02:54]} 10. Bxe4 {[%clk 0:02:53]}  Bxe4 {[%clk 0:02:55]} 11. Qxe4 {[%clk 0:02:54]}  Nd7 {[%clk 0:02:56]} 12. Bg5 {[%clk 0:02:53]}  Nf6 {[%clk 0:02:55]} 13. Qh4 {[%clk 0:02:53]}  Be7 {[%clk 0:02:55]} 14. Rad1 {[%clk 0:02:51]}  Qd5 {[%clk 0:02:54]} 15. b3 {[%clk 0:02:48]}  h6 {[%clk 0:02:54]} 16. Bc1 {[%clk 0:02:25]}  Qf5 {[%clk 0:02:47]} 17. c4 {[%clk 0:02:19]}  Rfd8 {[%clk 0:02:08]} 18. Ne5 {[%clk 0:02:08]}  Qe4 {[%clk 0:01:26]} 19. Qxe4 {[%clk 0:02:05]}  Nxe4 {[%clk 0:01:27]} 20. Nc6 {[%clk 0:02:02]}  Re8 {[%clk 0:01:28]} 21. Nxe7+ {[%clk 0:02:00]}  Rxe7 {[%clk 0:01:29]} 22. Bb2 {[%clk 0:01:59]}  c5 {[%clk 0:01:28]} 23. f3 {[%clk 0:01:58]}  Ng5 {[%clk 0:01:24]} 24. dxc5 {[%clk 0:01:33]}  bxc5 {[%clk 0:01:25]} 25. Rd6 {[%clk 0:01:27]}  Rc8 {[%clk 0:01:14]} 26. Rfd1 {[%clk 0:01:26]}  Rec7 {[%clk 0:00:37]} 27. Rd8+ {[%clk 0:01:11]}  Rxd8 {[%clk 0:00:19]} 28. Rxd8+ {[%clk 0:01:10]}  Kh7 {[%clk 0:00:16]} 29. h4 {[%clk 0:01:11]} 1-0


[Site "https://www.chess.com"]

[Event "Titled Tuesday Blitz May 30 Early 2023"]
[White "Jiganchine, Roman"]
[Black "Mayeregger, Arnold"]
[WhiteFideId "2603667"]
[BlackFideId "3705226"]
[WhiteElo "2315"]
[BlackElo "2038"]
[Result "0-1"]
[Round "11"]
[TimeControl "180+2"]
[Date "2023.05.30"]
[WhiteClock "0:00:00"]
[BlackClock "0:01:52"]

1. e4 {[%clk 0:02:59]}  c5 {[%clk 0:02:47]} 2. Nf3 {[%clk 0:02:39]}  Nc6 {[%clk 0:02:46]} 3. Bb5 {[%clk 0:02:36]}  g6 {[%clk 0:02:46]} 4. O-O {[%clk 0:02:35]}  Bg7 {[%clk 0:02:45]} 5. Re1 {[%clk 0:02:35]}  e5 {[%clk 0:02:45]} 6. Nc3 {[%clk 0:02:06]}  Nge7 {[%clk 0:02:44]} 7. a4 {[%clk 0:01:57]}  O-O {[%clk 0:02:43]} 8. d3 {[%clk 0:01:56]}  h6 {[%clk 0:02:42]} 9. h3 {[%clk 0:01:52]}  d6 {[%clk 0:02:42]} 10. Nh2 {[%clk 0:01:51]}  f5 {[%clk 0:02:40]} 11. Bc4+ {[%clk 0:01:44]}  Kh7 {[%clk 0:02:39]} 12. exf5 {[%clk 0:01:19]}  Nxf5 {[%clk 0:02:36]} 13. Bd5 {[%clk 0:01:13]}  Bd7 {[%clk 0:02:34]} 14. Ng4 {[%clk 0:01:03]}  a6 {[%clk 0:02:20]} 15. Ne3 {[%clk 0:01:03]}  Nfd4 {[%clk 0:02:14]} 16. Ne4 {[%clk 0:00:59]}  Qe7 {[%clk 0:02:09]} 17. c3 {[%clk 0:00:59]}  Ne6 {[%clk 0:02:06]} 18. Ng3 {[%clk 0:00:41]}  Nf4 {[%clk 0:02:03]} 19. Be4 {[%clk 0:00:36]}  Kh8 {[%clk 0:02:03]} 20. Nd5 {[%clk 0:00:34]}  Qh4 {[%clk 0:02:00]} 21. Bxf4 {[%clk 0:00:09]}  exf4 {[%clk 0:02:01]} 22. Nh1 {[%clk 0:00:09]}  Qg5 {[%clk 0:01:56]} 23. Kh2 {[%clk 0:00:00]}  f3 {[%clk 0:01:52]} 0-1


[Site "https://www.chess.com"]

[Event "Titled Tuesday Blitz May 30 Early 2023"]
[White "Blokhin, Sofia"]
[Black "Zheenbekov, Nurgazy"]
[WhiteFideId "4508190"]
[BlackFideId "13800485"]
[WhiteElo "1994"]
[BlackElo "1975"]
[Result "1/2-1/2"]
[Round "11"]
[TimeControl "180+2"]
[Date "2023.05.30"]
[WhiteClock "0:00:10"]
[BlackClock "0:00:09"]

1. e4 {[%clk 0:03:00]}  e5 {[%clk 0:02:58]} 2. Bc4 {[%clk 0:02:58]}  Nf6 {[%clk 0:02:58]} 3. d3 {[%clk 0:02:57]}  Nc6 {[%clk 0:02:57]} 4. Nf3 {[%clk 0:02:56]}  Be7 {[%clk 0:02:55]} 5. O-O {[%clk 0:02:55]}  O-O {[%clk 0:02:54]} 6. c3 {[%clk 0:02:54]}  d6 {[%clk 0:02:53]} 7. b4 {[%clk 0:02:53]}  a6 {[%clk 0:02:53]} 8. a4 {[%clk 0:02:53]}  h6 {[%clk 0:02:51]} 9. Bb3 {[%clk 0:02:49]}  Nh7 {[%clk 0:02:51]} 10. Nbd2 {[%clk 0:02:48]}  Ng5 {[%clk 0:02:50]} 11. Nxg5 {[%clk 0:02:44]}  Bxg5 {[%clk 0:02:50]} 12. Nc4 {[%clk 0:02:44]}  Bxc1 {[%clk 0:02:49]} 13. Rxc1 {[%clk 0:02:44]}  Ne7 {[%clk 0:02:49]} 14. Ne3 {[%clk 0:02:41]}  Ng6 {[%clk 0:02:48]} 15. g3 {[%clk 0:02:39]}  Kh7 {[%clk 0:02:46]} 16. Qh5 {[%clk 0:02:36]}  Qg5 {[%clk 0:02:42]} 17. Qxg5 {[%clk 0:02:31]}  hxg5 {[%clk 0:02:40]} 18. Nd5 {[%clk 0:02:32]}  c6 {[%clk 0:02:36]} 19. Nb6 {[%clk 0:02:26]}  Rb8 {[%clk 0:02:36]} 20. Nxc8 {[%clk 0:02:26]}  Rbxc8 {[%clk 0:02:36]} 21. d4 {[%clk 0:02:23]}  f6 {[%clk 0:02:30]} 22. Be6 {[%clk 0:02:20]}  Rcd8 {[%clk 0:02:28]} 23. Bf5 {[%clk 0:02:19]}  Kh6 {[%clk 0:02:27]} 24. Bxg6 {[%clk 0:02:08]}  Kxg6 {[%clk 0:02:25]} 25. f4 {[%clk 0:02:09]}  exf4 {[%clk 0:02:24]} 26. gxf4 {[%clk 0:02:09]}  Rfe8 {[%clk 0:02:22]} 27. f5+ {[%clk 0:01:57]}  Kf7 {[%clk 0:02:19]} 28. Rce1 {[%clk 0:01:57]}  Rh8 {[%clk 0:02:19]} 29. Rf3 {[%clk 0:01:50]}  Rde8 {[%clk 0:02:18]} 30. Rfe3 {[%clk 0:01:47]}  Rh4 {[%clk 0:02:16]} 31. Kg2 {[%clk 0:01:44]}  Reh8 {[%clk 0:02:13]} 32. h3 {[%clk 0:01:42]}  g4 {[%clk 0:02:12]} 33. Rh1 {[%clk 0:01:37]}  R8h5 {[%clk 0:02:02]} 34. a5 {[%clk 0:01:16]}  Rg5 {[%clk 0:02:01]} 35. Kg3 {[%clk 0:01:04]}  Rh6 {[%clk 0:01:54]} 36. h4 {[%clk 0:00:58]}  Rgh5 {[%clk 0:01:39]} 37. Kxg4 {[%clk 0:00:58]}  Rh8 {[%clk 0:01:37]} 38. Reh3 {[%clk 0:00:53]}  g6 {[%clk 0:01:31]} 39. fxg6+ {[%clk 0:00:51]}  Kxg6 {[%clk 0:01:31]} 40. Kf4 {[%clk 0:00:51]}  Kf7 {[%clk 0:01:30]} 41. c4 {[%clk 0:00:48]}  Ke6 {[%clk 0:01:29]} 42. d5+ {[%clk 0:00:47]}  Kd7 {[%clk 0:01:28]} 43. Rg1 {[%clk 0:00:40]}  R8h7 {[%clk 0:01:25]} 44. Rg6 {[%clk 0:00:36]}  Rxh4+ {[%clk 0:01:25]} 45. Rxh4 {[%clk 0:00:35]}  Rxh4+ {[%clk 0:01:24]} 46. Kf5 {[%clk 0:00:36]}  Rh5+ {[%clk 0:01:20]} 47. Kxf6 {[%clk 0:00:34]}  Re5 {[%clk 0:01:20]} 48. Rg7+ {[%clk 0:00:32]}  Kc8 {[%clk 0:01:20]} 49. dxc6 {[%clk 0:00:29]}  bxc6 {[%clk 0:01:19]} 50. Re7 {[%clk 0:00:26]}  Rh5 {[%clk 0:01:12]} 51. Ke6 {[%clk 0:00:25]}  Rh6+ {[%clk 0:00:56]} 52. Kf5 {[%clk 0:00:24]}  Rh5+ {[%clk 0:00:48]} 53. Kf4 {[%clk 0:00:23]}  Rh3 {[%clk 0:00:40]} 54. Ra7 {[%clk 0:00:19]}  Rc3 {[%clk 0:00:32]} 55. Rxa6 {[%clk 0:00:18]}  Rxc4 {[%clk 0:00:32]} 56. Rb6 {[%clk 0:00:14]}  d5 {[%clk 0:00:32]} 57. Kf5 {[%clk 0:00:13]}  dxe4 {[%clk 0:00:21]} 58. Kf4 {[%clk 0:00:11]}  Kc7 {[%clk 0:00:19]} 59. Ke3 {[%clk 0:00:10]}  Kc8 {[%clk 0:00:15]} 60. a6 {[%clk 0:00:09]}  Kc7 {[%clk 0:00:15]} 61. Rb7+ {[%clk 0:00:09]}  Kc8 {[%clk 0:00:15]} 62. b5 {[%clk 0:00:08]}  cxb5 {[%clk 0:00:14]} 63. Rxb5 {[%clk 0:00:08]}  Ra4 {[%clk 0:00:14]} 64. Rb6 {[%clk 0:00:08]}  Kc7 {[%clk 0:00:14]} 65. Rb7+ {[%clk 0:00:08]}  Kc6 {[%clk 0:00:11]} 66. Rb8 {[%clk 0:00:08]}  Rxa6 {[%clk 0:00:10]} 67. Kxe4 {[%clk 0:00:08]}  Ra4+ {[%clk 0:00:10]} 68. Ke5 {[%clk 0:00:08]}  Ra5+ {[%clk 0:00:10]} 69. Ke4 {[%clk 0:00:08]}  Ra4+ {[%clk 0:00:09]} 70. Ke5 {[%clk 0:00:09]}  Ra5+ {[%clk 0:00:09]} 71. Ke4 {[%clk 0:00:10]}  Ra4+ {[%clk 0:00:09]} 1/2-1/2


[Site "https://www.chess.com"]